bitfinex-derivatives/quotes_BTCF0:USTF0_20210104
["timestamp","ask_amount","ask_price","bid_price","bid_amount"]
[1609744609928,3.47139001,32638.0,32604.0,4.5304]
[1609744610126,1.65370383,32635.0,32604.0,4.14996597]
[1609744610526,1.65424254,32638.0,32604.0,3.38909242]
[1609744610728,1.65424254,32638.0,32604.0,3.53812242]
[1609744610927,1.65424254,32638.0,32637.0,0.14033567]
[1609744611126,1.65375822,32641.0,32630.0,3.96293071]
[1609744611326,1.65375822,32641.0,32637.0,0.12935]
[1609744611526,1.06512925,32654.0,32630.0,3.96293071]
[1609744611527,1.65205874,32646.0,32630.0,3.90207833]
[1609744611727,1.65205874,32646.0,32637.0,0.13797]
[1609744611927,2.25275277,32659.0,32637.0,0.13797]
[1609744612227,1.05087306,32638.0,32637.0,0.15504]
[1609744612828,1.05087306,32638.0,32624.0,1.0]
[1609744612829,0.14033567,32638.0,32629.0,0.14033567]
[1609744613128,1.32219527,32644.0,32635.0,4.5437]
[1609744613328,1.50247414,32647.0,32635.0,4.5437]
[1609744613329,0.77650517,32666.0,32635.0,4.54179778]
[1609744614830,0.77650517,32666.0,32655.0,0.14033567]
[1609744615231,0.77650517,32666.0,32655.0,0.15645]
[1609744615432,1.44555882,32671.0,32655.0,0.01611433]
[1609744615931,1.44555882,32671.0,32644.0,0.13338]
[1609744616933,0.14033567,32645.0,32644.0,0.13338]
[1609744617133,0.14033567,32645.0,32643.0,5.0]
[1609744617535,0.14033567,32645.0,32643.0,4.23907005]
[1609744617933,0.14033567,32645.0,32629.0,0.11881]
[1609744618135,0.14033567,32645.0,32619.0,3.0041077]
[1609744618933,0.12575,32656.0,32629.0,0.14033567]
[1609744619132,0.12575,32656.0,32629.0,0.28571567]
[1609744619536,4.3747,32652.0,32629.0,0.14538]
[1609744619734,0.12575,32656.0,32593.0,1.0]
[1609744619934,0.12575,32656.0,32137.0,6.06792153]
[1609744619935,0.12575,32656.0,32599.0,4.8214]
[1609744620138,0.12575,32656.0,32604.0,0.14668]
[1609744620536,0.12575,32656.0,32599.0,4.58744413]
[1609744620935,0.14033567,32622.0,32618.0,0.14033567]
[1609744621143,0.12575,32656.0,32618.0,0.14033567]
[1609744621339,0.12575,32656.0,32618.0,0.28759567]
[1609744621937,0.12575,32656.0,32643.0,1.0]
[1609744622337,1.0,32659.0,32643.0,1.0]
[1609744622738,1.7128,32659.0,32643.0,1.0]
[1609744622936,0.14033567,32644.0,32643.0,1.0]
[1609744623138,0.14033567,32644.0,32643.0,0.8152]
[1609744623539,0.14033567,32644.0,32632.0,0.15917]
[1609744623741,0.14033567,32644.0,32642.0,1.0]
[1609744623940,0.14033567,32644.0,32642.0,0.23874696]
[1609744624139,0.14033567,32644.0,32632.0,0.15917]
[1609744624340,0.14033567,32644.0,32620.0,4.136697]
[1609744624740,0.14033567,32644.0,32620.0,3.75609227]
[1609744624940,0.14033567,32644.0,32592.0,1.0]
[1609744624941,0.14032,32650.0,32592.0,0.99950945]
[1609744625140,0.14032,32650.0,32618.0,0.10935]
[1609744626242,0.14032,32650.0,32618.0,0.12152]
[1609744626543,0.14032,32650.0,32618.0,0.01217]
[1609744626942,0.14033567,32619.0,32618.0,0.01217]
[1609744627144,0.00783,32618.0,32610.0,0.13841]
[1609744627344,0.00783,32618.0,32598.0,1.0]
[1609744627543,4.7177,32611.0,32598.0,1.0]
[1609744627742,0.00783,32618.0,32598.0,1.0]
[1609744627945,0.00783,32618.0,32598.0,1.11842]
[1609744628844,0.14033567,32599.0,32598.0,1.25875567]
[1609744629245,0.14033567,32599.0,32598.0,0.25875567]
[1609744629847,0.14033567,32599.0,32598.0,0.14033567]
[1609744630045,0.14033567,32599.0,32584.0,0.07954409]
[1609744630449,4.2897,32589.0,32548.0,1.0]
[1609744630646,0.14033567,32599.0,32548.0,1.0]
[1609744630847,4.1132,32573.0,32557.0,0.14033567]
[1609744631046,0.00783,32618.0,32557.0,0.14033567]
[1609744631647,0.0199,32598.0,32557.0,0.14033567]
[1609744632447,0.0199,32598.0,32558.0,5.0532]
[1609744632746,0.0199,32598.0,32557.0,0.14033567]
[1609744632949,0.14033567,32577.0,32540.0,4.7731]
[1609744633347,0.14033567,32577.0,32565.0,1.0]
[1609744633548,0.14033567,32577.0,32565.0,1.11206]
[1609744633949,0.14033567,32577.0,32565.0,0.97172433]
[1609744634151,0.14033567,32577.0,32565.0,0.11206]
[1609744634951,0.14033567,32566.0,32565.0,0.11206]
[1609744636154,6.14033567,32566.0,32565.0,0.11206]
[1609744636752,6.14033567,32566.0,32532.0,1.0]
[1609744636953,0.14033567,32533.0,32532.0,1.0]
[1609744638155,0.14033567,32533.0,32531.0,0.14033567]
[1609744638557,4.6175,32569.0,32531.0,0.14033567]
[1609744638755,0.15712,32572.0,32531.0,0.28367567]
[1609744638957,0.15712,32572.0,32550.0,0.14033567]
[1609744639257,0.15712,32572.0,32531.0,0.09964704]
[1609744639459,0.15712,32572.0,32550.0,0.15882]
[1609744639860,0.15712,32572.0,32550.0,0.15691343]
[1609744640959,0.14033567,32551.0,32550.0,0.15691343]
[1609744641160,0.23233567,32551.0,32550.0,0.15691343]
[1609744641559,0.14033567,32551.0,32550.0,0.15691343]
[1609744642159,0.14033567,32551.0,32531.0,0.09964704]
[1609744642961,0.14033567,32532.0,32531.0,0.09964704]
[1609744643762,4.2055,32553.0,32496.0,4.3965]
[1609744644161,0.0933,32552.0,32496.0,4.3965]
[1609744644962,0.14033567,32524.0,32523.0,0.14033567]
[1609744645162,0.14033567,32524.0,32523.0,0.06079158]
[1609744645363,0.14033567,32524.0,32496.0,4.3965]
[1609744645564,0.14033567,32524.0,32463.0,1.0]
[1609744645764,0.14033567,32524.0,32474.0,4.1253]
[1609744646965,4.9672,32539.0,32491.0,0.14033567]
[1609744646966,0.14033567,32501.0,32491.0,0.14033567]
[1609744647367,0.14033567,32501.0,32474.0,4.1253]
[1609744647568,0.14033567,32501.0,32441.0,1.0]
[1609744647768,0.14033567,32501.0,32442.0,5.0623]
[1609744648870,0.10297,32507.0,32482.0,0.14033567]
[1609744650173,0.10297,32507.0,32482.0,0.06079158]
[1609744650772,0.10297,32507.0,32472.0,0.11838]
[1609744650972,0.10297,32507.0,32492.0,0.14033567]
[1609744651171,0.09837,32515.0,32492.0,0.14033567]
[1609744651571,0.09837,32515.0,32492.0,0.1384262]
[1609744651772,1.0,32544.0,32492.0,0.1384262]
[1609744652175,5.98035759,32549.0,32492.0,0.12106]
[1609744652673,5.98035759,32549.0,32492.0,0.74476]
[1609744652874,1.23315759,32549.0,32538.0,0.14033567]
[1609744653074,0.14033567,32553.0,32528.0,5.06628947]
[1609744653275,0.14033567,32553.0,32528.0,5.22661947]
[1609744653477,1.30991143,32543.0,32528.0,5.0358042]
[1609744654281,1.30941578,32544.0,32528.0,4.27268102]
[1609744654979,1.44975145,32544.0,32543.0,0.14033567]
[1609744655179,1.30941578,32544.0,32543.0,0.14033567]
[1609744655379,1.30941578,32544.0,32539.0,0.15326]
[1609744655579,1.46024578,32544.0,32539.0,0.15326]
[1609744656483,1.46024578,32544.0,32519.0,5.1523]
[1609744656683,1.46024578,32544.0,32492.0,0.12106]
[1609744656883,0.14033567,32514.0,32508.0,0.14033567]
[1609744657085,0.14033567,32514.0,32489.0,1.0]
[1609744657285,0.23816567,32514.0,32489.0,1.0]
[1609744658284,1.0,32490.0,32465.0,1.0]
[1609744658484,1.09768,32490.0,32465.0,1.0]
[1609744658985,1.09768,32490.0,32470.0,0.14033567]
[1609744659187,1.09768,32490.0,32468.0,0.01954409]
[1609744659586,5.1721,32488.0,32468.0,0.01954409]
[1609744660286,1.0,32469.0,32468.0,0.01954409]
[1609744660486,0.11257,32469.0,32468.0,0.01954409]
[1609744660787,0.11247,32469.0,32468.0,0.01954409]
[1609744660987,0.11247,32469.0,32468.0,0.15987976]
[1609744661789,0.09768,32490.0,32468.0,0.15987976]
[1609744662189,0.09768,32490.0,32466.0,0.12119]
[1609744662895,0.11969,32501.0,32466.0,0.12119]
[1609744663097,0.11969,32501.0,32489.0,0.14033567]
[1609744663390,0.11969,32501.0,32473.0,4.74006599]
[1609744663591,0.11969,32501.0,32484.0,0.11618]
[1609744664190,0.11969,32501.0,32466.0,0.12119]
[1609744664991,0.11969,32501.0,32500.0,1.0]
[1609744667093,0.26002567,32501.0,32500.0,1.0]
[1609744667495,0.26002567,32501.0,32500.0,0.42742375]
[1609744667691,0.11969,32501.0,32500.0,0.42742375]
[1609744667893,0.57305265,32519.0,32500.0,5.61825957]
[1609744668295,0.57305265,32519.0,32487.0,0.14033567]
[1609744668995,0.57305265,32519.0,32494.0,0.14033567]
[1609744668996,0.14033567,32504.0,32494.0,0.14033567]
[1609744669395,0.27856567,32504.0,32494.0,0.14033567]
[1609744670197,0.27856567,32504.0,32473.0,0.11882]
[1609744670997,0.13823,32504.0,32500.0,0.14033567]
[1609744671600,0.13823,32504.0,32480.0,0.1519]
[1609744672300,0.13823,32504.0,32503.0,0.85966433]
[1609744672699,0.13823,32504.0,32480.0,0.1519]
[1609744673000,0.14033567,32481.0,32480.0,0.1519]
[1609744673400,0.15132,32494.0,32480.0,0.1519]
[1609744675003,0.15132,32494.0,32493.0,0.14033567]
[1609744675203,0.15132,32494.0,32480.0,0.1519]
[1609744676202,0.15132,32494.0,32475.0,0.0121]
[1609744676404,4.6578,32490.0,32475.0,0.0121]
[1609744676604,6.0,32476.0,32475.0,0.0121]
[1609744676804,6.73623,32476.0,32475.0,0.0121]
[1609744677003,6.87656567,32476.0,32475.0,0.0121]
[1609744677404,6.87656567,32476.0,32434.0,1.0]
[1609744678005,6.28226567,32476.0,32434.0,1.0]
[1609744678605,1.0,32464.0,32448.0,1.0]
[1609744678805,0.5066,32463.0,32448.0,1.0]
[1609744679005,0.14033567,32449.0,32448.0,1.0]
[1609744679207,0.25972567,32449.0,32448.0,1.0]
[1609744680606,0.25972567,32449.0,32432.0,0.14033567]
[1609744680807,0.25972567,32449.0,32448.0,1.0]
[1609744681008,0.25972567,32449.0,32448.0,0.99808947]
[1609744681207,0.25972567,32449.0,32437.0,0.14033567]
[1609744682912,0.11863,32463.0,32437.0,0.14033567]
[1609744683110,0.11863,32463.0,32459.0,0.14033567]
[1609744683512,0.14193,32476.0,32459.0,0.14033567]
[1609744683711,0.15132,32494.0,32459.0,0.14033567]
[1609744684112,0.15132,32494.0,32459.0,0.25188567]
[1609744685014,0.14033567,32496.0,32493.0,0.14033567]
[1609744685212,0.14033567,32496.0,32493.0,1.14033567]
[1609744685415,1.0,32524.0,32493.0,1.14033567]
[1609744686614,1.0,32524.0,32493.0,0.85401659]
[1609744687114,0.43651,32521.0,32485.0,4.4629]
[1609744687315,0.43651,32521.0,32471.0,0.0992]
[1609744688916,0.43651,32521.0,32481.0,4.1932]
[1609744689117,0.43651,32521.0,32520.0,1.14033567]
[1609744689518,0.43651,32521.0,32520.0,1.0]
[1609744690319,0.43651,32521.0,32520.0,0.80921555]
[1609744690519,0.43651,32521.0,32511.0,4.8711]
[1609744691117,0.43651,32521.0,32520.0,0.14033567]
[1609744691919,0.43651,32521.0,32520.0,0.13842812]
[1609744692518,0.43651,32521.0,32520.0,6.13842812]
[1609744692719,1.0,32557.0,32520.0,6.13842812]
[1609744693121,1.0,32557.0,32554.0,0.14033567]
[1609744693322,1.0,32557.0,32527.0,0.12239]
[1609744693519,1.13209,32557.0,32527.0,0.12239]
[1609744694620,0.13209,32557.0,32516.0,0.13146]
[1609744695020,0.13209,32557.0,32512.0,4.0309]
[1609744695220,0.13209,32557.0,32520.0,0.14033567]
[1609744695420,0.13209,32557.0,32512.0,4.0309]
[1609744696621,0.13209,32557.0,32551.0,1.0]
[1609744697023,0.15199,32557.0,32551.0,1.0]
[1609744697223,0.14033567,32552.0,32551.0,1.0]
[1609744698627,0.14033567,32552.0,32540.0,3.5646]
[1609744699125,0.14033567,32541.0,32540.0,3.5646]
[1609744699325,0.13524,32541.0,32540.0,3.5646]
[1609744699827,0.13524,32541.0,32535.0,0.14033567]
[1609744700327,0.10826,32549.0,32535.0,0.14033567]
[1609744700528,0.10826,32549.0,32540.0,1.0]
[1609744701129,0.10826,32549.0,32546.0,0.14033567]
[1609744702330,0.10826,32549.0,32540.0,1.0]
[1609744702529,0.10826,32549.0,32527.0,0.10167]
[1609744702929,0.10826,32549.0,32522.0,4.0757]
[1609744703128,0.14033567,32523.0,32522.0,4.0757]
[1609744703332,0.14033567,32523.0,32486.0,1.0]
[1609744703530,0.14033567,32523.0,32500.0,5.1542]
[1609744704732,0.14033567,32523.0,32500.0,5.1352]
[1609744705133,0.13074,32528.0,32510.0,0.14033567]
[1609744705332,0.13074,32528.0,32508.0,0.11316]
[1609744705533,0.13074,32528.0,32500.0,5.1352]
[1609744707134,0.13074,32528.0,32517.0,0.14033567]
[1609744708336,0.2826,32548.0,32517.0,0.14033567]
[1609744708937,0.2826,32548.0,32517.0,4.49433567]
[1609744709137,0.10826,32549.0,32535.0,0.14033567]
[1609744709339,0.15199,32557.0,32535.0,0.14033567]
[1609744710137,0.0933,32556.0,32535.0,0.14033567]
[1609744710340,0.15199,32557.0,32535.0,0.14033567]
[1609744711141,0.15199,32557.0,32544.0,0.14033567]
[1609744711340,0.0923,32556.0,32544.0,0.14033567]
[1609744711639,0.15199,32557.0,32544.0,0.14033567]
[1609744713742,0.0927,32556.0,32544.0,0.14033567]
[1609744714743,0.15199,32557.0,32544.0,0.14033567]
[1609744715144,0.15199,32557.0,32553.0,0.14033567]
[1609744716145,0.15199,32557.0,32541.0,5.0294]
[1609744716545,0.15199,32557.0,32556.0,1.0]
[1609744717047,0.13209,32557.0,32556.0,1.0]
[1609744717246,0.27242567,32557.0,32556.0,1.0]
[1609744717446,0.14033567,32557.0,32556.0,1.0]
[1609744718549,1.14033567,32557.0,32541.0,1.0]
[1609744718749,1.24949567,32557.0,32541.0,1.0]
[1609744719152,0.0914,32556.0,32541.0,1.0]
[1609744719351,1.10916,32557.0,32541.0,1.0]
[1609744719853,0.14033567,32542.0,32541.0,1.0]
[1609744720553,0.10916,32557.0,32541.0,1.0]
[1609744722558,0.10916,32557.0,32531.0,0.11144]
[1609744723161,0.09916,32557.0,32531.0,0.11144]
[1609744723361,0.09916,32557.0,32527.0,4.1769]
[1609744723561,0.09916,32557.0,32501.0,0.13527]
[1609744723761,3.7354,32564.0,32501.0,0.13527]
[1609744723961,3.7354,32564.0,32523.0,0.14033567]
[1609744724163,3.7354,32564.0,32523.0,0.25025567]
[1609744724563,3.7354,32564.0,32523.0,1.25025567]
[1609744724564,1.0,32539.0,32523.0,1.25025567]
[1609744725066,0.99,32539.0,32523.0,1.25025567]
[1609744725263,0.99,32539.0,32523.0,1.10992]
[1609744725464,0.10954,32553.0,32523.0,0.10992]
[1609744725865,0.10954,32553.0,32539.0,0.14033567]
[1609744726065,0.09844,32561.0,32539.0,0.14033567]
[1609744726264,0.09844,32561.0,32539.0,0.27745567]
[1609744726667,0.09844,32561.0,32539.0,0.13712]
[1609744727064,0.09844,32561.0,32539.0,0.14712]
[1609744727465,1.0,32558.0,32541.0,1.0]
[1609744727865,0.14033567,32542.0,32541.0,1.14033567]
[1609744728266,1.0,32558.0,32541.0,1.14033567]
[1609744728869,0.991,32558.0,32541.0,1.14033567]
[1609744729069,0.09844,32561.0,32541.0,0.14033567]
[1609744729871,0.14033567,32555.0,32553.0,0.14033567]
[1609744730569,0.0917,32554.0,32553.0,0.14033567]
[1609744732272,0.09844,32561.0,32553.0,0.14033567]
[1609744732472,0.14033567,32562.0,32553.0,0.14033567]
[1609744732673,0.14033567,32562.0,32541.0,3.4948]
[1609744732872,0.23837567,32562.0,32541.0,3.4948]
[1609744733274,0.23837567,32562.0,32554.0,1.0]
[1609744733873,0.23837567,32562.0,32561.0,0.14033567]
[1609744734576,0.09804,32562.0,32561.0,0.14033567]
[1609744735276,0.19074,32562.0,32561.0,0.14033567]
[1609744736176,0.19074,32562.0,32541.0,3.4948]
[1609744736880,0.09804,32562.0,32541.0,3.4948]
[1609744737079,0.09804,32562.0,32561.0,1.0]
[1609744737983,0.14033567,32563.0,32561.0,1.14033567]
[1609744738183,0.29008567,32563.0,32561.0,1.14033567]
[1609744739185,0.29008567,32563.0,32561.0,0.14033567]
[1609744739386,0.14033567,32563.0,32561.0,0.14033567]
[1609744739785,0.14117,32579.0,32561.0,0.14033567]
[1609744739985,0.14117,32579.0,32571.0,0.14033567]
[1609744740185,0.092,32578.0,32562.0,4.9549]
[1609744740486,0.14117,32579.0,32562.0,4.9549]
[1609744741487,4.0364,32629.0,32562.0,4.9549]
[1609744741889,4.0364,32629.0,32571.0,0.14033567]
[1609744742490,4.0364,32629.0,32562.0,4.9549]
[1609744742691,4.17563,32629.0,32562.0,4.9549]
[1609744743994,0.03,32628.0,32568.0,0.14033567]
[1609744745994,0.03,32628.0,32572.0,0.14033567]
[1609744746897,0.3242,32628.0,32572.0,0.14033567]
[1609744747096,1.0,32592.0,32576.0,1.0]
[1609744747495,1.12237,32592.0,32576.0,1.0]
[1609744748096,0.14033567,32577.0,32576.0,1.0]
[1609744749097,0.14033567,32577.0,32568.0,0.14033567]
[1609744749998,0.14033567,32569.0,32568.0,0.14033567]
[1609744751100,0.14033567,32569.0,32568.0,1.14033567]
[1609744752101,0.14033567,32569.0,32568.0,1.0]
[1609744753100,0.14033567,32569.0,32561.0,0.12245]
[1609744753101,0.14764,32569.0,32543.0,2.05829232]
[1609744753501,0.14764,32569.0,32542.0,3.723]
[1609744754000,0.14764,32569.0,32554.0,0.14033567]
[1609744754904,0.14764,32569.0,32551.0,0.12917]
[1609744755303,0.14764,32569.0,32539.0,0.01]
[1609744756104,0.14033567,32540.0,32539.0,0.01]
[1609744756306,0.27919567,32540.0,32539.0,0.01]
[1609744756909,0.27919567,32540.0,32518.0,2.05903366]
[1609744757705,0.27919567,32540.0,32515.0,3.5124]
[1609744758005,0.14033567,32521.0,32518.0,0.14033567]
[1609744759708,0.14033567,32521.0,32509.0,2.05898116]
[1609744759909,0.14033567,32521.0,29700.0,0.0725]
[1609744759910,0.14033567,32521.0,32504.0,2.05903781]
[1609744760113,0.14033567,32512.0,32511.0,0.14033567]
[1609744760309,0.14033567,32512.0,32504.0,2.05903781]
[1609744760510,0.14033567,32512.0,32502.0,2.05903756]
[1609744761011,0.12972,32525.0,32502.0,2.05903756]
[1609744761411,0.12972,32525.0,32503.0,2.05984225]
[1609744761612,0.15863,32533.0,32503.0,2.05984225]
[1609744762013,0.15863,32533.0,32529.0,0.14033567]
[1609744762413,0.15863,32533.0,32516.0,0.14481]
[1609744763014,0.13886,32540.0,32516.0,0.14481]
[1609744763214,0.2725,32554.0,32516.0,0.14481]
[1609744763916,0.2725,32554.0,32516.0,2.20238501]
[1609744764117,0.2725,32554.0,32550.0,0.14033567]
[1609744765319,0.2725,32554.0,32537.0,0.10085]
[1609744766120,0.14033567,32538.0,32533.0,4.4875]
[1609744766521,0.14033567,32538.0,32528.0,0.14033567]
[1609744768117,0.14033567,32529.0,32528.0,0.14033567]
[1609744768717,0.14721,32546.0,32528.0,0.14033567]
[1609744769317,0.2725,32554.0,32528.0,0.14033567]
[1609744769518,0.2725,32554.0,32531.0,4.0745]
[1609744770322,0.14033567,32551.0,32550.0,0.14033567]
[1609744770522,0.2725,32554.0,32550.0,0.14033567]
[1609744771121,0.2725,32554.0,32553.0,1.0]
[1609744772321,0.41283567,32554.0,32553.0,1.0]
[1609744778532,0.14033567,32554.0,32544.0,7.07252905]
[1609744778730,0.14033567,32554.0,32544.0,2.07252905]
[1609744778731,6.14033567,32554.0,32544.0,2.07252905]
[1609744778930,4.7887,32546.0,32544.0,1.02439905]
[1609744779130,4.7887,32546.0,32541.0,2.26094078]
[1609744779330,4.7887,32546.0,32516.0,2.45158073]
[1609744779732,0.02,32544.0,32516.0,2.45158073]
[1609744779932,0.02,32544.0,32516.0,1.45158073]
[1609744780132,6.0,32517.0,32516.0,1.45158073]
[1609744780333,6.26134567,32517.0,32516.0,1.45158073]
[1609744782136,0.26134567,32517.0,32516.0,1.45158073]
[1609744782536,0.14033567,32517.0,32516.0,1.45158073]
[1609744783138,0.29504567,32517.0,32516.0,1.45158073]
[1609744783343,0.29504567,32517.0,32516.0,1.19918073]
[1609744783743,3.28042132,32517.0,32422.0,3.01926318]
[1609744784144,3.28042132,32517.0,32463.0,1.0]
[1609744784340,0.14033567,32494.0,32463.0,1.0]
[1609744784546,0.14419,32496.0,32463.0,1.0]
[1609744784749,0.14419,32496.0,32474.0,5.00135]
[1609744784944,1.17381175,32489.0,32474.0,0.12965]
[1609744785346,1.55680989,32490.0,32474.0,0.12965]
[1609744785543,1.55680989,32490.0,32463.0,1.0]
[1609744785544,0.12663,32550.0,32479.0,4.5687]
[1609744785748,0.12663,32550.0,32479.0,4.70864]
[1609744786139,0.12663,32550.0,32543.0,1.0]
[1609744786341,0.17023567,32544.0,32543.0,1.0]
[1609744786539,0.17023567,32544.0,32543.0,0.5558]
[1609744786939,0.17023567,32544.0,32527.0,0.10974]
[1609744787240,0.17023567,32544.0,32521.0,4.5489]
[1609744787241,1.57590832,32532.0,32521.0,4.5489]
[1609744787842,1.57918701,32539.0,32521.0,4.40108511]
[1609744788041,1.57918701,32539.0,32521.0,0.13816]
[1609744788342,0.0299,32544.0,32538.0,0.14033567]
[1609744789144,0.0299,32544.0,32535.0,4.23160804]
[1609744790342,1.58125163,32555.0,32535.0,4.23160804]
[1609744790943,1.58125163,32555.0,32554.0,1.0]
[1609744791445,1.57979206,32558.0,32554.0,0.85966433]
[1609744791844,0.09893,32564.0,32554.0,1.0]
[1609744792344,0.14033567,32555.0,32554.0,1.0]
[1609744793748,0.14033567,32555.0,32545.0,0.10396]
[1609744793949,0.26591567,32555.0,32535.0,4.23160804]
[1609744794348,0.14033567,32536.0,32535.0,4.22970258]
[1609744794748,0.12558,32555.0,32535.0,4.22970258]
[1609744796250,0.0931,32554.0,32535.0,4.22970258]
[1609744796451,0.0931,32554.0,32543.0,0.14033567]
[1609744797049,0.12558,32555.0,32543.0,0.14033567]
[1609744798349,0.12558,32555.0,32550.0,0.14033567]
[1609744799052,0.09893,32564.0,32550.0,0.14033567]
[1609744799251,1.57839959,32568.0,32550.0,0.14033567]
[1609744799651,1.57839959,32568.0,32553.0,0.623]
[1609744799953,1.38986111,32566.0,32553.0,0.43251626]
[1609744800355,0.12021,32566.0,32556.0,0.14033567]
[1609744800555,0.091,32565.0,32556.0,0.14033567]
[1609744800955,0.22063,32567.0,32559.0,3.9362]
[1609744801356,0.12863,32567.0,32559.0,3.9362]
[1609744801957,0.12863,32567.0,32566.0,6.0]
[1609744802157,1.40374246,32587.0,32566.0,6.0]
[1609744802358,1.40374246,32587.0,32571.0,0.14033567]
[1609744802761,1.40374246,32587.0,32572.0,0.7104]
[1609744802960,1.7546382,32594.0,32572.0,0.7104]
[1609744802961,1.40706947,32595.0,32572.0,0.7104]
[1609744803960,1.40706947,32595.0,32592.0,1.0]
[1609744804362,0.14033567,32593.0,32592.0,1.0]
[1609744804760,0.25445567,32593.0,32592.0,1.0]
[1609744805061,0.25445567,32593.0,32592.0,0.61927844]
[1609744805362,0.25445567,32593.0,32585.0,1.0]
[1609744805965,0.25445567,32593.0,32585.0,0.71444001]
[1609744806164,0.25445567,32593.0,32585.0,0.16904001]
[1609744806365,1.14033567,32586.0,32584.0,3.4956]
[1609744806565,0.27150567,32586.0,32498.0,2.0406887]
[1609744806767,0.27150567,32586.0,32542.0,4.1133]
[1609744808365,0.13117,32586.0,32543.0,0.14033567]
[1609744808568,1.0,32553.0,32543.0,0.14033567]
[1609744808766,1.10341,32553.0,32543.0,0.14033567]
[1609744810069,0.85331,32553.0,32543.0,0.14033567]
[1609744810270,0.85331,32553.0,32543.0,0.13843111]
[1609744810470,0.10341,32553.0,32552.0,0.14033567]
[1609744812173,0.10341,32553.0,32543.0,0.5744]
[1609744812371,0.10341,32553.0,32552.0,1.14033567]
[1609744812571,0.10341,32553.0,32552.0,1.0]
[1609744813675,1.0,32569.0,32552.0,0.14311]
[1609744813875,1.0,32569.0,32543.0,0.5744]
[1609744814074,1.0,32553.0,32543.0,0.5744]
[1609744814375,0.14033567,32544.0,32543.0,0.5744]
[1609744814777,0.26036567,32544.0,32543.0,0.5744]
[1609744815779,0.26036567,32544.0,32543.0,0.041]
[1609744815979,0.26036567,32544.0,32530.0,1.0]
[1609744816180,0.26036567,32544.0,32509.0,3.7228]
[1609744816378,0.14033567,32510.0,32509.0,3.7228]
[1609744816578,0.14033567,32510.0,32490.0,0.14033567]
[1609744816779,0.29800567,32510.0,32506.0,3.9081]
[1609744817581,0.29800567,32510.0,32506.0,3.5325]
[1609744817780,0.29800567,32510.0,32476.0,2.04500306]
[1609744817981,0.29800567,32510.0,32478.0,4.6022]
[1609744818381,0.14033567,32479.0,32478.0,4.6022]
[1609744818780,0.29620567,32479.0,32472.0,2.0477339]
[1609744819183,0.29620567,32479.0,32448.0,4.0688]
[1609744819882,0.15587,32479.0,32448.0,4.0688]
[1609744820283,5.1418,32501.0,32448.0,4.17122]
[1609744820485,5.1418,32501.0,32485.0,0.14033567]
[1609744820683,5.1418,32501.0,32479.0,0.01]
[1609744820884,5.27881,32501.0,32479.0,0.01]
[1609744821985,5.27881,32501.0,32479.0,0.0080916]
[1609744823088,0.14033567,32480.0,32479.0,0.0080916]
[1609744823285,0.29049567,32480.0,32479.0,0.0080916]
[1609744824088,6.29049567,32480.0,32479.0,0.0080916]
[1609744824287,6.29049567,32480.0,32462.0,0.0199]
[1609744825191,0.14033567,32463.0,32448.0,0.10242]
[1609744825586,0.14033567,32463.0,32445.0,1.0]
[1609744825786,4.4204,32451.0,32445.0,1.0]
[1609744826087,4.4204,32451.0,32389.0,2.03741956]
[1609744826289,4.4204,32451.0,32381.0,2.03740651]
[1609744827089,0.14033567,32411.0,32406.0,0.14033567]
[1609744827288,4.4204,32451.0,32406.0,0.14033567]
[1609744827488,4.4204,32451.0,32410.0,0.21267409]
[1609744829087,4.4204,32451.0,32425.0,0.14033567]
[1609744829288,4.4204,32451.0,32425.0,0.09856]
[1609744830890,6.0,32426.0,32425.0,0.09856]
[1609744831090,5.41948567,32426.0,32425.0,0.09856]
[1609744831290,0.14033567,32426.0,32425.0,0.09856]
[1609744832994,0.14033567,32426.0,32410.0,0.21267409]
[1609744833191,0.14033567,32411.0,32410.0,0.21267409]
[1609744834293,4.2593,32428.0,32410.0,0.21267409]
[1609744834798,0.12393,32445.0,32410.0,0.21267409]
[1609744835194,0.12393,32445.0,32426.0,0.14033567]
[1609744835395,0.12393,32445.0,32426.0,0.29025567]
[1609744835597,0.13624,32453.0,32426.0,0.29025567]
[1609744835995,1.35474914,32483.0,32426.0,0.29025567]
[1609744836197,5.0529,32487.0,32426.0,0.29025567]
[1609744837097,5.0529,32487.0,32448.0,0.14033567]
[1609744837497,5.0529,32487.0,32444.0,0.15572]
[1609744837797,5.16382,32487.0,32444.0,0.15572]
[1609744838298,5.16382,32487.0,32426.0,0.14992]
[1609744839496,0.14033567,32453.0,32452.0,0.14033567]
[1609744841100,0.14033567,32453.0,32426.0,0.14992]
[1609744841299,0.14033567,32453.0,32414.0,3.8777]
[1609744841500,1.0,32461.0,32447.0,0.14033567]
[1609744841700,1.0,32461.0,32447.0,0.24924567]
[1609744842405,0.8169,32461.0,32447.0,0.24924567]
[1609744842708,0.11243,32463.0,32447.0,0.24924567]
[1609744842900,5.16382,32487.0,32447.0,0.24924567]
[1609744843301,5.16382,32487.0,32447.0,0.10891]
[1609744843503,0.14033567,32459.0,32453.0,0.14033567]
[1609744843700,0.13373,32470.0,32453.0,0.14033567]
[1609744844101,0.11092,32487.0,32453.0,0.14033567]
[1609744844302,1.37288905,32514.0,32453.0,0.14033567]
[1609744844502,1.37542108,32519.0,32453.0,0.14033567]
[1609744844701,1.0,32496.0,32480.0,1.0]
[1609744844903,1.13069,32496.0,32480.0,1.0]
[1609744845503,1.13069,32496.0,32491.0,0.14033567]
[1609744846104,1.13069,32496.0,32480.0,0.94950187]
[1609744846303,0.13069,32496.0,32470.0,0.14016]
[1609744846502,1.0,32494.0,32478.0,1.0]
[1609744846704,1.0,32494.0,32478.0,0.99809159]
[1609744847104,0.13069,32496.0,32470.0,0.14016]
[1609744847304,0.13069,32496.0,32459.0,0.13779]
[1609744847505,0.14033567,32460.0,32439.0,0.14033567]
[1609744848804,0.14033567,32460.0,32412.0,1.0]
[1609744849104,1.0,32440.0,32415.0,1.0]
[1609744849504,1.0,32440.0,32417.0,0.14033567]